fUST/lending_fUST_20260612
["ID","MTS","AMOUNT","RATE_DAILY","PERIOD"]
[424843795,1781197843000,-1023.87,0.0003726,18]
[424843787,1781197843000,-16418.99,0.0003726,18]
[424843759,1781197843000,-500.0,0.0003726,18]
[424843789,1781197843000,-927.85,0.0003726,18]
[424843784,1781197843000,-564.02,0.0003726,18]
[424843813,1781197843000,-500.0,0.00037534,18]
[424843808,1781197843000,-500.0,0.00037534,18]
[424843806,1781197843000,-500.0,0.00037534,18]
[424843799,1781197843000,-500.0,0.00037534,18]
[424843802,1781197843000,-270.91477769,0.00037534,18]
[424843811,1781197843000,-500.0,0.00037534,18]
[424843804,1781197843000,-500.0,0.00037534,18]
[424843797,1781197843000,-500.0,0.0003726,18]
[424843793,1781197843000,-1757.98,0.0003726,18]
[424843786,1781197843000,-1264.17,0.0003726,18]
[424843800,1781197843000,-500.0,0.00037534,18]
[424843908,1781197844000,-618.42,0.00037534,18]
[424843895,1781197844000,-500.0,0.00037534,18]
[424843909,1781197844000,-500.0,0.00037534,18]
[424843902,1781197844000,-500.0,0.00037534,18]
[424843901,1781197844000,-993.31,0.00037534,18]
[424843897,1781197844000,-500.0,0.00037534,18]
[424843899,1781197844000,-2320.67,0.00037534,18]
[424843900,1781197844000,-500.0,0.00037534,18]
[424843898,1781197844000,-1789.85,0.00037534,18]
[424843890,1781197844000,-500.0,0.00037534,18]
[424843905,1781197844000,-1220.57,0.00037534,18]
[424843904,1781197844000,-1269.75,0.00037534,18]
[424843903,1781197844000,-500.0,0.00037534,18]
[424843892,1781197844000,-1379.74,0.00037534,18]
[424843889,1781197844000,-500.0,0.00037534,6]
[424843894,1781197844000,-1277.21,0.00037534,2]
[424843885,1781197844000,-631.04,0.00037534,18]
[424843907,1781197844000,-822.38,0.00037534,18]
[424843906,1781197844000,-713.18,0.00037534,11]
[424843911,1781197844000,-500.0,0.00037534,18]
[424843887,1781197844000,-500.0,0.00037534,18]
[424843913,1781197844000,-500.0,0.00037534,18]
[424843932,1781197844000,-606.50840628,0.0003726,18]
[424843931,1781197844000,-997.63159372,0.0003726,18]
[424843927,1781197844000,-1058.09,0.00036986,18]
[424843922,1781197844000,-631.55,0.00036438,18]
[424843924,1781197844000,-631.55,0.00036712,18]
[424843928,1781197844000,-631.55,0.00036986,18]
[424843926,1781197844000,-168.58803178,0.00036986,18]
[424843923,1781197844000,-1058.09,0.00036712,18]
[424843925,1781197844000,-697.15196822,0.00036986,18]
[424843929,1781197844000,-865.74,0.0003726,18]
[424843919,1781197844000,-631.55,0.0003589,18]
[424843930,1781197844000,-60.45840628,0.0003726,18]
[424843920,1781197844000,-631.55,0.00036164,18]
[424843918,1781197844000,-1385.59573854,0.00037534,18]
[424843915,1781197844000,-564.02,0.00037534,18]
[424843916,1781197844000,-1264.17,0.00037534,18]
[424843917,1781197844000,-3637.92917901,0.00037534,18]
[424843914,1781197844000,-545.68,0.00037534,18]
[424843912,1781197844000,-519.68,0.00037534,18]
[424843921,1781197844000,-1058.09,0.00036438,18]
[424843910,1781197844000,-500.0,0.00037534,18]
[424843952,1781197845000,-7650.40574025,0.00037534,18]
[424843950,1781197845000,-25.04159372,0.0003726,18]
[424843948,1781197845000,-582.58618894,0.00021667,2]
[424843949,1781197845000,-152.0,0.00035389,7]
[424843961,1781197846000,-582.58618892,0.00024467,2]
[424843964,1781197846000,-500.0,0.00037534,18]
[424843963,1781197846000,-927.85,0.00037534,18]
[424843965,1781197846000,-872.67002188,0.00037534,18]
[424843962,1781197846000,-3745.0593422,0.00037534,18]
[424843973,1781198980000,1000.0,0.00024078,30]
[424844015,1781199032000,-3292.85126973,0.00016019,9]
[424844013,1781199032000,-1707.14873027,0.00016019,9]
[424844017,1781199032000,-12.34216107,0.00017014,3]
[424844116,1781199038000,-500.0,0.00025443,2]
[424844120,1781199038000,-617.70862076,0.00025443,2]
[424844123,1781199038000,-2073.61078389,0.00025443,2]
[424844108,1781199038000,-389.18012559,0.00022187,2]
[424844112,1781199038000,-160.0,0.00025431,2]
[424844114,1781199038000,-156.362,0.00025443,10]
[424844109,1781199038000,-179.897805,0.00023658,2]
[424844105,1781199038000,-145.65783893,0.00017014,3]
[424844122,1781199038000,-430.01592342,0.00025443,2]
[424844125,1781199038000,-25354.9280804,0.00025444,2]
[424844140,1781199038000,-516.08036285,0.00034105,2]
[424844138,1781199038000,-516.08036285,0.00032656,2]
[424844142,1781199038000,-209.10338945,0.00035216,2]
[424844144,1781199038000,-47715.66470254,0.00035315,2]
[424844146,1781199038000,-1449.97840101,0.00035315,2]
[424844136,1781199038000,-516.08036285,0.00031208,2]
[424844130,1781199038000,-2284.7640196,0.00025444,2]
[424844132,1781199038000,-516.08036286,0.00029759,2]
[424844134,1781199038000,-166.67,0.00029859,2]
[424844148,1781199038000,-1547.99999999,0.00035315,2]
[424844150,1781199038000,-44490.7727643,0.00035315,2]
[424844118,1781199038000,-500.0,0.00025443,2]
[424844356,1781199041000,-2118.69089328,0.00035315,2]
[424844353,1781199041000,-544.22752634,0.00035315,2]
[424844355,1781199041000,-1756.8,0.00035315,2]
[424844354,1781199041000,-24225.17446489,0.00035315,2]
[424844384,1781199043000,-2931.65318337,0.00035315,2]
[424844382,1781199043000,-363.28755318,0.00035315,2]
[424844383,1781199043000,-2439.82511158,0.00035315,2]
[424844409,1781199046000,-116800.85829555,0.00035315,2]
[424844408,1781199046000,-965.64560968,0.00035315,2]
[424844405,1781199046000,-3845.60563222,0.00035315,2]
[424844406,1781199046000,-8078.709267,0.00035315,2]
[424844407,1781199046000,-6320.20764113,0.00035315,2]
[424844404,1781199046000,-3268.93180977,0.00035315,2]
[424844402,1781199046000,-19211.11784142,0.00035315,2]
[424844403,1781199046000,-2452.93688462,0.00035315,2]
[424844410,1781199249000,5000.0,0.00024658,30]
[424844411,1781199271000,1657.69377645,0.00024658,30]
[424844460,1781200232000,-893.90684644,0.00016453,9]
[424844907,1781200241000,-1298.56785633,0.000349,2]
[424844909,1781200241000,-21629.27871038,0.00035,120]
[424844904,1781200241000,-237.43124632,0.00033828,2]
[424844905,1781200241000,-1397.0633257,0.00034121,2]
[424844906,1781200241000,-160.0,0.00034505,2]
[424844903,1781200241000,-153.42214266,0.00017926,2]
[424844901,1781200241000,-1593.66757411,0.00016619,9]
[424844899,1781200241000,-2308.07353736,0.00016453,9]
[424844900,1781200241000,-509.29242589,0.00016453,9]
[424844902,1781200241000,-3406.33242589,0.00016619,9]
[424844898,1781200241000,-1288.72719031,0.00016453,9]
[424844908,1781200241000,-1298.56785632,0.00034957,2]
[424844955,1781200246000,-6273.20416399,0.00035,120]
[424844954,1781200246000,-1949.09956,0.00035,120]
[424844957,1781200247000,-47998.82560013,0.00035,120]
[424844958,1781200247000,-4602.33260778,0.00035,120]
[424844961,1781200640000,455.75468587,0.00024658,30]
[424844962,1781200649000,5000.0,0.00024658,30]
[424845130,1781201440000,-284.05333906,0.00017728,9]
[424845177,1781201441000,-11000.0,0.0003,60]
[424845173,1781201441000,-156.362,0.000212,2]
[424845171,1781201441000,-274.18478338,0.000212,2]
[424845180,1781201441000,-327.28831244,0.00031329,2]
[424845167,1781201441000,-500.0,0.00019994,2]
[424845164,1781201441000,-500.0,0.00019994,2]
[424845165,1781201441000,-500.0,0.00019994,2]
[424845158,1781201441000,-500.0,0.00019994,2]
[424845162,1781201441000,-500.0,0.00019994,2]
[424845160,1781201441000,-500.0,0.00019994,2]
[424845156,1781201441000,-500.0,0.00019994,2]
[424845149,1781201441000,-500.0,0.00019994,2]
[424845143,1781201441000,-500.0,0.00019994,2]
[424845154,1781201441000,-384.98055529,0.00019994,2]
[424845151,1781201441000,-500.0,0.00019994,2]
[424845152,1781201441000,-310.53688357,0.00019994,2]
[424845141,1781201441000,-500.0,0.00019994,2]
[424845137,1781201441000,-500.0,0.00019994,2]
[424845147,1781201441000,-500.0,0.00019994,2]
[424845145,1781201441000,-500.0,0.00019994,2]
[424845134,1781201441000,-5000.0,0.00018088,9]
[424845136,1781201441000,-500.0,0.00019994,2]
[424845132,1781201441000,-5000.0,0.00017907,9]
[424845178,1781201441000,-1003.0,0.00030255,7]
[424845139,1781201441000,-500.0,0.00019994,2]
[424845175,1781201441000,-327.28831244,0.000299,2]
[424845232,1781201441000,-11725.86429382,0.00034678,2]
[424845182,1781201441000,-327.28831244,0.00032757,2]
[424845216,1781201441000,-642.27921206,0.00034675,7]
[424845214,1781201441000,-642.27921206,0.00034675,7]
[424845212,1781201441000,-642.27921206,0.00034675,7]
[424845229,1781201441000,-5627.88534179,0.00034678,2]
[424845227,1781201441000,-1197.95937301,0.00034678,2]
[424845210,1781201441000,-642.27921206,0.00034675,7]
[424845208,1781201441000,-642.27921206,0.00034675,7]
[424845206,1781201441000,-642.27921206,0.00034675,7]
[424845225,1781201441000,-5702.28168253,0.00034678,2]
[424845223,1781201441000,-23245.06921196,0.00034678,2]
[424845220,1781201441000,-227.64271894,0.00034678,2]
[424845169,1781201441000,-10711.03863862,0.0002,5]
[424845218,1781201441000,-500.0,0.00034677,7]
[424845197,1781201441000,-642.27921206,0.00034675,7]
[424845195,1781201441000,-642.27921206,0.00034675,7]
[424845199,1781201441000,-642.27921206,0.00034675,7]
[424845201,1781201441000,-642.27921206,0.00034675,7]
[424845203,1781201441000,-642.27921206,0.00034675,7]
[424845188,1781201441000,-397.65,0.00034668,3]
[424845193,1781201441000,-258.44720444,0.00034675,7]
[424845191,1781201441000,-596.5,0.00034668,3]
[424845189,1781201441000,-198.83,0.00034668,3]
[424845186,1781201441000,-327.28831244,0.00034186,2]
[424845184,1781201441000,-1003.0,0.00033299,7]
[424845204,1781201441000,-642.27921206,0.00034675,7]
[424845689,1781201446000,-5000.0,0.00017551,9]
[424845695,1781201446000,-11853.70799434,0.00034678,2]
[424845690,1781201446000,-3562.10536663,0.00034678,2]
[424845765,1781202631000,-909.838,0.00017396,2]
[424845760,1781202631000,-2199.91804181,0.00017222,2]
[424845762,1781202631000,-3199.94722516,0.00017396,2]
[424845757,1781202631000,-1990.81803,0.00017222,2]
[424845936,1781202638000,-493.99615222,0.00021298,2]
[424845930,1781202638000,-180.88257349,0.00020749,7]
[424845941,1781202638000,-500.0,0.00021298,2]
[424845934,1781202638000,-215.47820698,0.00021298,2]
[424845932,1781202638000,-343.76026201,0.00021087,2]
[424845927,1781202638000,-158.24379248,0.00020636,2]
[424845929,1781202638000,-333.0807525,0.00020749,7]
[424845925,1781202638000,-171.01299991,0.00020636,2]
[424845914,1781202638000,-180.88257349,0.00019212,7]
[424845908,1781202638000,-890.21477484,0.00017396,2]
[424845918,1781202638000,-180.88257349,0.00019596,7]
[424845916,1781202638000,-333.0807525,0.00019596,7]
[424845920,1781202638000,-333.0807525,0.00020173,7]
[424845921,1781202638000,-180.88257349,0.00020173,7]
[424845912,1781202638000,-333.0807525,0.00019212,7]
[424845911,1781202638000,-5000.0,0.00017572,2]
[424845940,1781202638000,-500.0,0.00021298,2]
[424845923,1781202638000,-344.4726976,0.00020313,2]
[424845938,1781202638000,-500.0,0.00021298,2]
[424845953,1781202638000,-965.04316011,0.000213,2]
[424845946,1781202638000,-500.0,0.00021298,2]
[424845944,1781202638000,-626.49854358,0.00021298,2]
[424845981,1781202638000,-468.01479659,0.000219,2]
[424845979,1781202638000,-474.73137745,0.00021886,2]
[424845977,1781202638000,-513.03899973,0.00021886,2]
[424845975,1781202638000,-965.04316011,0.000217,2]
[424845973,1781202638000,-2218.78917628,0.000217,2]
[424845965,1781202638000,-180.8825735,0.00021517,7]
[424845963,1781202638000,-333.0807525,0.00021517,7]
[424845961,1781202638000,-965.04316011,0.000215,2]
[424845972,1781202638000,-67.56638785,0.000216,2]
[424845968,1781202638000,-96.07776837,0.000216,2]
[424845957,1781202638000,-316.48758497,0.00021386,2]
[424845967,1781202638000,-216.831,0.000216,2]
[424845955,1781202638000,-342.02599982,0.00021386,2]
[424845948,1781202638000,-500.0,0.00021298,2]
[424845950,1781202638000,-449.82953505,0.00021298,2]
[424845959,1781202638000,-2218.78917628,0.000215,2]
[424845951,1781202638000,-2218.78917628,0.000213,2]
[424846464,1781202643000,-184.086036,0.00022432,2]
[424846475,1781202643000,-184.086036,0.00024792,2]
[424846478,1781202643000,-163.64415622,0.00025414,2]
[424846482,1781202643000,-573.34987977,0.00025442,2]
[424846473,1781202643000,-152.0,0.00024695,30]
[424846466,1781202643000,-2218.78917628,0.000226,2]
[424846469,1781202643000,-2218.78917628,0.000231,2]
[424846471,1781202643000,-2218.78917628,0.000233,2]
[424846480,1781202643000,-240.37181195,0.00025442,2]
[424846484,1781202643000,-573.34987977,0.00025442,2]
[424846476,1781202643000,-164.02470756,0.00025165,2]
[424846417,1781202643000,-317.989,0.000219,2]
[424846455,1781202643000,-1089.6601528,0.000222,2]
[424846460,1781202643000,-632.97516993,0.00022219,2]
[424846458,1781202643000,-684.05199964,0.00022219,2]
[424846456,1781202643000,-965.04316011,0.000222,2]
[424846452,1781202643000,-1129.12902348,0.000222,2]
[424846451,1781202643000,-199.9457231,0.000219,2]
[424846413,1781202643000,-4.10843701,0.000219,2]
[424846415,1781202643000,-443.0,0.000219,2]
[424846411,1781202643000,-561.34156299,0.000219,2]
[424846409,1781202643000,-1189.4328167,0.000219,2]
[424846486,1781202643000,-573.34987977,0.00025442,2]
[424846462,1781202643000,-2218.78917628,0.000224,2]
[424846467,1781202643000,-2218.78917628,0.000228,2]
[424846531,1781202643000,-597.52613302,0.00025442,2]
[424846495,1781202643000,-573.34987977,0.00025442,2]
[424846537,1781202643000,-4161.7209991,0.00025444,2]
[424846529,1781202643000,-597.52613302,0.00025442,2]
[424846527,1781202643000,-597.52613302,0.00025442,2]
[424846533,1781202643000,-597.52613302,0.00025442,2]
[424846524,1781202643000,-597.52613302,0.00025442,2]
[424846526,1781202643000,-597.52613302,0.00025442,2]
[424846522,1781202643000,-168.26026836,0.00025442,2]
[424846520,1781202643000,-597.52613302,0.00025442,2]
[424846516,1781202643000,-573.34987977,0.00025442,2]
[424846518,1781202643000,-573.34987977,0.00025442,2]
[424846535,1781202643000,-597.52613302,0.00025442,2]
[424846514,1781202643000,-573.34987977,0.00025442,2]
[424846510,1781202643000,-573.34987977,0.00025442,2]
[424846512,1781202643000,-573.34987977,0.00025442,2]
[424846507,1781202643000,-573.34987977,0.00025442,2]
[424846501,1781202643000,-573.34987977,0.00025442,2]
[424846498,1781202643000,-573.34987977,0.00025442,2]
[424846505,1781202643000,-573.34987977,0.00025442,2]
[424846503,1781202643000,-573.34987977,0.00025442,2]
[424846491,1781202643000,-573.34987977,0.00025442,2]
[424846493,1781202643000,-573.34987977,0.00025442,2]
[424846490,1781202643000,-573.34987977,0.00025442,2]
[424846508,1781202643000,-573.34987977,0.00025442,2]
[424846488,1781202643000,-573.34987977,0.00025442,2]
[424846837,1781202646000,-2575.66618234,0.00025444,2]
[424848823,1781202711000,-265.8830527,0.00015682,2]
[424848824,1781202727000,-668.7469473,0.0001584,2]
[424848883,1781203832000,-135.78283619,0.00016,14]
[424848890,1781203832000,-630.63,0.00016,14]
[424848881,1781203832000,-168.21716381,0.0001584,7]
[424849077,1781203838000,-199.105,0.00018233,2]
[424849078,1781203838000,-252.3257457,0.00020361,7]
[424849088,1781203838000,-152.0,0.00025076,30]
[424849076,1781203838000,-3012.55299643,0.00017869,2]
[424849058,1781203838000,-5000.0,0.00017514,2]
[424849066,1781203838000,-500.0,0.00017869,2]
[424849064,1781203838000,-500.0,0.00017869,2]
[424849062,1781203838000,-500.0,0.00017869,2]
[424849070,1781203838000,-500.0,0.00017869,2]
[424849056,1781203838000,-5000.0,0.00017339,2]
[424849073,1781203838000,-500.0,0.00017869,2]
[424849075,1781203838000,-215.42561658,0.00017869,2]
[424849071,1781203838000,-500.0,0.00017869,2]
[424849074,1781203838000,-473.62822048,0.00017869,2]
[424849068,1781203838000,-500.0,0.00017869,2]
[424849054,1781203838000,-11427.06491827,0.00016,14]
[424849080,1781203838000,-500.0,0.00021298,2]
[424849060,1781203838000,-612.39455094,0.00017869,2]
[424849079,1781203838000,-190.88529251,0.00021198,2]
[424849086,1781203838000,-184.086036,0.00024049,2]
[424849082,1781203838000,-500.0,0.00022218,2]
[424849081,1781203838000,-263.73965414,0.00021893,2]
[424849101,1781203838000,-500.0,0.00025443,2]
[424849100,1781203838000,-498.33935905,0.00025443,2]
[424849099,1781203838000,-500.0,0.00025443,2]
[424849095,1781203838000,-500.0,0.00025443,2]
[424849093,1781203838000,-189.78448419,0.00025429,2]
[424849096,1781203838000,-500.0,0.00025443,2]
[424849097,1781203838000,-500.0,0.00025443,2]
[424849094,1781203838000,-500.0,0.00025443,2]
[424849098,1781203838000,-500.0,0.00025443,2]
[424849090,1781203838000,-151.0,0.00025429,2]
[424849091,1781203838000,-151.0,0.00025429,2]
[424849089,1781203838000,-152.0,0.00025213,2]
[424849087,1781203838000,-190.88529251,0.00025069,2]
[424849084,1781203838000,-3358.3975535,0.0002374,2]
[424849102,1781203838000,-500.0,0.00025443,2]
[424849085,1781203838000,-5735.1802097,0.0002374,2]
[424849083,1781203838000,-527.47930827,0.00022227,2]
[424849092,1781203838000,-151.0,0.00025429,2]
[424849116,1781203839000,-500.0,0.00025443,2]
[424849115,1781203839000,-500.0,0.00025443,2]
[424849121,1781203839000,-157.46256206,0.00030278,2]
[424849120,1781203839000,-290.64222842,0.00029546,2]
[424849124,1781203839000,-1003.0,0.00032,7]
[424849117,1781203839000,-27975.7571,0.00025444,2]
[424849119,1781203839000,-190.88529251,0.00028941,2]
[424849125,1781203839000,-1003.0,0.00032,7]
[424849122,1781203839000,-283.43261171,0.00030425,2]
[424849118,1781203839000,-166.84234044,0.00027397,30]
[424849113,1781203839000,-500.0,0.00025443,2]
[424849110,1781203839000,-500.0,0.00025443,2]
[424849112,1781203839000,-500.0,0.00025443,2]
[424849111,1781203839000,-500.0,0.00025443,2]
[424849107,1781203839000,-500.0,0.00025443,2]
[424849109,1781203839000,-298.83755133,0.00025443,2]
[424849105,1781203839000,-500.0,0.00025443,2]
[424849108,1781203839000,-500.0,0.00025443,2]
[424849103,1781203839000,-500.0,0.00025443,2]
[424849106,1781203839000,-500.0,0.00025443,2]
[424849126,1781203839000,-1003.0,0.00032,7]
[424849104,1781203839000,-500.0,0.00025443,2]
[424849114,1781203839000,-500.0,0.00025443,2]
[424849129,1781203839000,-152.0,0.00032084,7]
[424849123,1781203839000,-339.76170954,0.00031294,2]
[424849131,1781203839000,-190.88529251,0.00032812,2]
[424849148,1781203839000,-500.0,0.00035616,18]
[424849150,1781203839000,-500.0,0.00035616,18]
[424849149,1781203839000,-673.28,0.00035616,18]
[424849146,1781203839000,-500.0,0.00035616,18]
[424849145,1781203839000,-613.23,0.00035616,18]
[424849143,1781203839000,-858.89,0.00035616,2]
[424849144,1781203839000,-500.0,0.00035616,18]
[424849142,1781203839000,-500.0,0.00035616,18]
[424849141,1781203839000,-7623.14935772,0.00035,120]
[424849138,1781203839000,-490.21380365,0.00034003,7]
[424849152,1781203839000,-383.05879857,0.00035616,18]
[424849140,1781203839000,-904.19218862,0.00034957,7]
[424849137,1781203839000,-396.63247708,0.00033903,6]
[424849139,1781203839000,-160.0,0.00034768,2]
[424849136,1781203839000,-1003.0,0.00033577,7]
[424849135,1781203839000,-1003.0,0.00033577,7]
[424849134,1781203839000,-1003.0,0.00033577,7]
[424849133,1781203839000,-328.05889547,0.00033263,2]
[424849127,1781203839000,-152.0,0.00032023,7]
[424849151,1781203839000,-500.0,0.00035616,18]
[424849130,1781203839000,-152.0,0.00032084,7]
[424849128,1781203839000,-152.0,0.00032023,7]
[424849147,1781203839000,-500.0,0.00035616,18]
[424849132,1781203839000,-9756.02618839,0.00032937,14]
[424849160,1781203841000,-116.94120143,0.00035616,18]
[424849161,1781203841000,-438.98461867,0.00035616,18]
[424849179,1781203843000,-77.19461864,0.00035616,18]
[424849178,1781203843000,-1014.91,0.00035616,18]
[424849177,1781203843000,-500.0,0.00035616,6]
[424849175,1781203843000,-147.85538133,0.00035616,18]
[424849176,1781203843000,-535.04,0.00035616,18]
[424849201,1781203846000,-500.0,0.00035616,18]
[424849199,1781203846000,-500.0,0.00035616,18]
[424849195,1781203846000,-500.0,0.00035616,18]
[424849197,1781203846000,-500.0,0.00035616,18]
[424849194,1781203846000,-322.77479374,0.00035616,18]
[424849193,1781203846000,-500.0,0.00035616,18]
[424849196,1781203846000,-500.0,0.00035616,18]
[424849189,1781203846000,-500.0,0.00035616,18]
[424849191,1781203846000,-500.0,0.00035616,18]
[424849198,1781203846000,-490.74797264,0.00035616,18]
[424849192,1781203846000,-595.47,0.00035616,18]
[424849187,1781203846000,-435.29794341,0.00035616,18]
[424849188,1781203846000,-500.0,0.00035616,18]
[424849186,1781203846000,-64.70205659,0.00035616,18]
[424849185,1781203846000,-500.0,0.00035616,18]
[424849184,1781203846000,-500.0,0.00035616,18]
[424849183,1781203846000,-422.80538136,0.00035616,18]
[424849200,1781203846000,-232.13679962,0.00035616,18]
[424849190,1781203846000,-500.0,0.00035616,18]
[424849204,1781203846000,-500.0,0.00035616,18]
[424849220,1781203846000,-500.0,0.00035616,11]
[424849205,1781203846000,-500.0,0.00035616,18]
[424849202,1781203846000,-500.0,0.00035616,18]
[424849224,1781203846000,-662.21,0.00035616,18]
[424849223,1781203846000,-500.0,0.00035616,18]
[424849222,1781203846000,-749.48,0.00035616,18]
[424849217,1781203846000,-10945.99,0.00035616,18]
[424849216,1781203846000,-846.5,0.00035616,18]
[424849219,1781203846000,-500.0,0.00035616,18]
[424849218,1781203846000,-500.0,0.00035616,18]
[424849215,1781203846000,-1193.23,0.00035616,18]
[424849221,1781203846000,-500.0,0.00035616,18]
[424849212,1781203846000,-919.82,0.00035616,18]
[424849213,1781203846000,-500.0,0.00035616,18]
[424849209,1781203846000,-500.0,0.00035616,18]
[424849207,1781203846000,-1208.87,0.00035616,18]
[424849210,1781203846000,-500.0,0.00035616,18]
[424849211,1781203846000,-500.0,0.00035616,18]
[424849206,1781203846000,-500.0,0.00035616,18]
[424849208,1781203846000,-500.0,0.00035616,18]
[424849203,1781203846000,-500.0,0.00035616,18]
[424849214,1781203846000,-1547.11,0.00035616,18]
[424849252,1781203847000,-199.40018,0.00035616,120]
[424849251,1781203847000,-300.0,0.00035616,120]
[424849245,1781203847000,-500.0,0.00035616,18]
[424849247,1781203847000,-300.0,0.00035616,120]
[424849244,1781203847000,-500.0,0.00035616,18]
[424849246,1781203847000,-300.0,0.00035616,120]
[424849253,1781203847000,-600.0,0.000357,30]
[424849258,1781203847000,-500.0,0.0003589,18]
[424849262,1781203847000,-500.0,0.0003589,18]
[424849254,1781203847000,-500.0,0.0003589,18]
[424849263,1781203847000,-586.84,0.0003589,18]
[424849259,1781203847000,-500.0,0.0003589,18]
[424849256,1781203847000,-500.0,0.0003589,18]
[424849260,1781203847000,-500.0,0.0003589,18]
[424849257,1781203847000,-613.23,0.0003589,18]
[424849243,1781203847000,-618.57,0.00035616,18]
[424849261,1781203847000,-673.28,0.0003589,18]
[424849255,1781203847000,-858.89,0.0003589,2]
[424849248,1781203847000,-300.0,0.00035616,120]
[424849228,1781203847000,-813.71,0.00035616,18]
[424849240,1781203847000,-500.0,0.00035616,18]
[424849275,1781203847000,-595.47,0.0003589,18]
[424849226,1781203847000,-842.78,0.00035616,18]
[424849225,1781203847000,-500.0,0.00035616,18]
[424849227,1781203847000,-500.0,0.00035616,18]
[424849237,1781203847000,-500.0,0.00035616,18]
[424849229,1781203847000,-568.75,0.00035616,18]
[424849236,1781203847000,-500.0,0.00035616,18]
[424849231,1781203847000,-500.0,0.00035616,18]
[424849242,1781203847000,-500.0,0.00035616,18]
[424849235,1781203847000,-500.0,0.00035616,18]
[424849230,1781203847000,-548.25,0.00035616,18]
[424849232,1781203847000,-725.25,0.00035616,18]
[424849233,1781203847000,-500.0,0.00035616,18]
[424849239,1781203847000,-500.0,0.00035616,18]
[424849249,1781203847000,-300.0,0.00035616,120]
[424849250,1781203847000,-300.0,0.00035616,120]
[424849238,1781203847000,-500.0,0.00035616,18]
[424849241,1781203847000,-1067.05,0.00035616,18]
[424849234,1781203847000,-608.14,0.00035616,18]
[424849264,1781203847000,-535.04,0.0003589,18]
[424849277,1781203847000,-646.32771378,0.0003589,18]
[424849269,1781203847000,-192.60944399,0.0003589,18]
[424849290,1781203847000,-500.0,0.0003589,18]
[424849300,1781203847000,-500.0,0.0003589,11]
[424849292,1781203847000,-919.82,0.0003589,18]
[424849291,1781203847000,-500.0,0.0003589,18]
[424849294,1781203847000,-1547.11,0.0003589,18]
[424849295,1781203847000,-1193.23,0.0003589,18]
[424849298,1781203847000,-500.0,0.0003589,18]
[424849293,1781203847000,-500.0,0.0003589,18]
[424849297,1781203847000,-10945.99,0.0003589,18]
[424849299,1781203847000,-500.0,0.0003589,18]
[424849301,1781203847000,-500.0,0.0003589,18]
[424849303,1781203847000,-500.0,0.0003589,18]
[424849305,1781203847000,-500.0,0.0003589,18]
[424849304,1781203847000,-662.21,0.0003589,18]
[424849306,1781203847000,-842.78,0.0003589,18]
[424849302,1781203847000,-749.48,0.0003589,18]
[424849307,1781203847000,-500.0,0.0003589,18]
[424849289,1781203847000,-500.0,0.0003589,18]
[424849284,1781203847000,-500.0,0.0003589,18]
[424849296,1781203847000,-846.5,0.0003589,18]
[424849288,1781203847000,-500.0,0.0003589,18]
[424849286,1781203847000,-500.0,0.0003589,18]
[424849267,1781203847000,-500.0,0.0003589,18]
[424849266,1781203847000,-1014.91,0.0003589,18]
[424849270,1781203847000,-500.0,0.0003589,18]
[424849268,1781203847000,-500.0,0.0003589,18]
[424849271,1781203847000,-500.0,0.0003589,18]
[424849274,1781203847000,-500.0,0.0003589,18]
[424849272,1781203847000,-500.0,0.0003589,18]
[424849273,1781203847000,-500.0,0.0003589,18]
[424849265,1781203847000,-500.0,0.0003589,6]